Cogmind - Beta 16 @@@ ROGUE MODE // 2025.12.15 @ 18:12:06 Player: winnking222 Result: Destroyed by Y-45 Defender with Beam Rifle Performance ------------- Evolutions (0) 0 Regions Visited (4) 800 Robots Destroyed (37) 185 Value Destroyed (869) 869 Prototype IDs (12) 240 Alien Tech Used (0) 0 Bonus (0) 0 TOTAL SCORE: 2094 Bonus ------- None Cogmind --------- Core Integrity 0/250 Matter 284/300 Energy 198/200 System Corruption 0% Temperature Cool (18) Movement Treading (160) Location -9/Recycling Parts ------- > --- POWER (1) -------- Subdweller Power Source > --- PROPULSION (2) --- Light Treads Light Treads > --- UTILITY (2) ------ Large Storage Unit Makeshift Kinetic Plating > --- WEAPON (2) ------- Subdweller Machine Gun Subdweller Machine Gun > --- INVENTORY (15) --- Light Treads Subdweller Monowheel Subdweller Monowheel Subdweller Monowheel Flightbrick Experimental Sensor Array Makeshift Light Armor Plating Makeshift Thermal Plating Subdweller Beam Cannon Subdweller Machine Gun Subdweller Machine Gun Grenade Launcher Peak State ------------ > --- POWER ------------ Subdweller Power Source > --- PROPULSION ------- Light Treads Light Treads > --- UTILITY ---------- Large Storage Unit Makeshift Light Armor Plating > --- WEAPON ----------- Subdweller Laser Subdweller Laser > --- INVENTORY -------- Light Treads Light Treads Subdweller Monowheel Subdweller Monowheel Flightbrick Experimental Sensor Array Makeshift Kinetic Plating Makeshift Thermal Plating Subdweller Machine Gun Subdweller Machine Gun Subdweller Machine Gun Grenade Launcher [Rating: 19] Favorites ----------- Power Subdweller Power Source Engine Subdweller Power Source Propulsion Light Treads Treads Light Treads Utility Large Storage Unit Device Seismic Detector Storage Large Storage Unit Protection Makeshift Light Armor Plating Weapon Assault Rifle Energy Gun Subdweller Laser Ballistic Gun Assault Rifle Launcher Grenade Launcher Build | -11 -10 -10 -10 -9 ------- Run | Yrd Mat Min Sub Rec Slots Evolved . | . . . . . Power . | . . . . . Propulsion . | . . . . . Utility . | . . . . . Weapon . | . . . . . Parts Attached 37 | 7 5 1 23 1 Power 7 | 1 1 . 5 . Engine 7 | 1 1 . 5 . Core . | . . . . . Reactor . | . . . . . Propulsion 6 | 2 . 1 3 . Treads 6 | 2 . 1 3 . Leg . | . . . . . Wheel . | . . . . . Hover . | . . . . . Flight . | . . . . . Utility 8 | 2 3 . 2 1 Device 2 | 1 1 . . . Storage 3 | 1 2 . . . Processor . | . . . . . Hackware . | . . . . . Protection 3 | . . . 2 1 Artifact . | . . . . . Weapon 16 | 2 1 . 13 . Energy Gun 3 | . . . 3 . Energy Cannon . | . . . . . Ballistic Gun 12 | 2 1 . 9 . Ballistic Cannon . | . . . . . Launcher 1 | . . . 1 . Special Weapon . | . . . . . Impact Weapon . | . . . . . Slashing Weapon . | . . . . . Piercing Weapon . | . . . . . Special Melee Weapon . | . . . . . Unidentified Prototypes . | . . . . . Parts Lost 2 | . . . 2 . Power . | . . . . . Propulsion 1 | . . . 1 . Utility 1 | . . . 1 . Weapon . | . . . . . Highest Loss Streak 1 | . . . 1 . To Critical Strikes . | . . . . . Average Backups 13 | 4 11 15 14 11 Power . | . . . . . Propulsion 4 | 2 5 4 3 4 Utility 2 | . . 2 4 3 Weapon 6 | . 4 8 6 4 Tool/Special . | . . . . . Unused Backups 25 | . 5 . 10 10 Power . | . . . . . Propulsion 10 | . 4 . 1 5 Utility 4 | . . . 2 2 Weapon 11 | . 1 . 7 3 Tool/Special . | . . . . . Average Slot Usage (%) 99 | . 100 100 99 100 Engine 13 | . 14 14 13 14 Treads 27 | . 28 28 27 28 Device 7 | . 14 14 3 . Storage 14 | . 14 14 14 14 Protection 6 | . . . 10 14 Energy Gun 5 | . . . 8 . Ballistic Gun 22 | . 28 28 18 28 Peak Build Rating 19 | 7 8 9 19 19 Average Rating 12 | 5 7 8 14 19 On Entrance 8 | . 7 8 9 19 Avg Prop Armor Cover (%) . | . . . . . Naked Turns . | . . . . . Heaviest Build 40 | 15 30 30 37 40 Greatest Support 40 | 40 40 40 40 40 Greatest Overweight (x) . | . . . . . Average Overweight (x) . | . . . . . Largest Inventory Capacity 15 | 8 15 15 15 15 Average Capacity 14 | 7 12 15 15 15 Most Carried 15 | 7 15 15 15 15 Average Carried 13 | 4 11 14 14 14 Final Capacity 15 | 8 15 15 15 15 Final Carried 15 | 6 15 15 14 15 Class Distribution -------------------- 81% | Mutant 18% | Scavenger-Mutant Dominant Class ---------------- Mutant | -10/Materials Mutant | -10/Mines Mutant | -10/Subcaves Mutant | -9/Recycling Resources | -11 -10 -10 -10 -9 ----------- Run | Yrd Mat Min Sub Rec Matter Collected 1235 | 306 175 123 593 38 Remotely . | . . . . . Salvage Created 1229 | 114 223 106 608 178 Parts 100 | 4 24 6 56 10 Haulers Intercepted 1 | . 1 . . . Recyclers Shooed 2 | . 1 . . 1 Parts Field Recycled . | . . . . . Retrieved Matter . | . . . . . Parts Self-Destructed 18 | . . . 18 . Prevented . | . . . . . Parts Restored . | . . . . . Kills | -11 -10 -10 -10 -9 ------- Run | Yrd Mat Min Sub Rec Combat Hostiles Destroyed 29 | . 9 2 16 2 Guns 28 | . 9 2 15 2 AOE 1 | . . . 1 . Classes Destroyed 9 | 2 3 1 3 . Tunneler 1 | 1 . . . . Hauler 1 | . 1 . . . Recycler 2 | 1 . . . 1 Turret 2 | . . . 2 . Watcher 2 | . 2 . . . Swarmer 14 | . 9 . 5 . Grunt 2 | . . 2 . . Sentry 3 | . . . 1 2 Subdweller 10 | . . . 10 . Best Kill Streak 4 | 1 4 1 3 3 Combat Bots Only 3 | . 3 1 3 2 Max Kills in Single Turn 1 | 1 1 1 1 1 Gunslinging . | . . . . . Exploded 1 | . . . 1 . Melee . | . . . . . Uniques/NPCs Destroyed . | . . . . . Combat | -11 -10 -10 -10 -9 -------- Run | Yrd Mat Min Sub Rec Hostile Shots Fired 171 | . 34 23 99 15 Missed 47 | . 11 5 29 2 Hits 124 | . 23 18 70 13 Projectile 124 | . 23 18 70 13 Critical Strikes 5 | . 1 1 2 1 Damage Taken 1618 | . 180 254 1008 176 Core 257 | . 37 27 139 54 Absorbed by Shields . | . . . . . Ignored by Resistances 12 | . . . . 12 Core Remaining (%) 100 | 100 . . . . Volleys Fired 165 | 6 27 14 107 11 Largest 2 | 2 2 2 2 2 Hottest 120 | 40 40 40 120 60 Shots Fired 286 | 12 54 28 170 22 Gun 284 | 12 54 28 168 22 Cannon . | . . . . . Launcher 2 | . . . 2 . Special . | . . . . . Kinetic 252 | 12 54 28 136 22 Thermal 32 | . . . 32 . Explosive 2 | . . . 2 . Electromagnetic . | . . . . . Robot Hit Streak 18 | 4 6 6 18 7 Robot Miss Streak 4 | 3 4 2 4 2 Penetration Max . | . . . . . Secondary Targets 1 | . . . 1 . Max Gunslinging Chain 1 | . . . 1 . Shots Hit Robots 141 | 7 30 18 70 16 Core Hits 61 | 3 13 5 36 4 Critical Kills . | . . . . . Critical Parts Destroyed 4 | 2 . . 2 . Critical Strikes 5 | 2 . . 3 . Destroy 5 | 2 . . 3 . Melee Attacks . | . . . . . Impact . | . . . . . Slashing . | . . . . . Piercing . | . . . . . Sneak Attacks . | . . . . . Combat Hostiles . | . . . . . Follow-up Attacks . | . . . . . Damage Inflicted 2541 | 93 380 239 1484 345 Guns 2307 | 93 380 236 1253 345 Cannons . | . . . . . Explosions 231 | . . . 231 . Melee . | . . . . . Ramming 3 | . . 3 . . Kinetic 2032 | 93 380 236 978 345 Thermal 275 | . . . 275 . Explosive 231 | . . . 231 . Electromagnetic . | . . . . . Impact . | . . . . . Slashing . | . . . . . Piercing . | . . . . . Highest Corruption . | . . . . . Average Corruption . | . . . . . Corruption Purged . | . . . . . Corruption Blocked . | . . . . . Overload Shots . | . . . . . Overflow Damage . | . . . . . Projectiles . | . . . . . Explosions . | . . . . . Melee . | . . . . . Knockbacks . | . . . . . Impact . | . . . . . Kinetic . | . . . . . Secondary . | . . . . . Self-Inflicted Damage . | . . . . . Shots . | . . . . . Rammed 2 | . 1 1 . . Targets Rammed 2 | . 1 1 . . Kicked . | . . . . . Crushed . | . . . . . Highest Temperature 28 | . . 27 3 28 Average Temperature 10 | . . 7 3 12 Received Heat Transfer 477 | . . 162 234 81 Siege Activations . | . . . . . Martial Activations . | . . . . . Shielding Activations . | . . . . . Robots Disrupted . | . . . . . Combat Hostiles . | . . . . . Robots Corrupted . | . . . . . Combat Hostiles . | . . . . . Parts Fried . | . . . . . Impact Corruptions . | . . . . . Robots Melted . | . . . . . Combat Hostiles . | . . . . . Parts Melted . | . . . . . Heat Transferred 325 | . . . 325 . Parts Sabotaged . | . . . . . Parts Stolen . | . . . . . Parts Stripped . | . . . . . Power Chain Reactions . | . . . . . Alert | -11 -10 -10 -10 -9 ------- Run | Yrd Mat Min Sub Rec Maximum Alert Level . | . . . . . Low Security (%) 100 | 100 100 100 . 100 Level 1 . | . . . . . Level 2 . | . . . . . Level 3 . | . . . . . Level 4 . | . . . . . Level 5 . | . . . . . High Security . | . . . . . Max Security . | . . . . . Peak Influence 85 | 5 85 40 . 36 Initial . | . . . . . Average 12 | . 18 2 . 11 Influence Increases 700 | 10 274 50 290 76 Destroy 0b10 Robot/C 420 | . 180 40 160 40 Destroy 0b10 Robot/NC 30 | 10 15 . . 5 Destroy Leader 56 | . 36 10 10 . Successful Hack 12 | . 12 . . . Select Force Hacks 30 | . . . . 30 Destroy Structure 2 | . 1 . . 1 Lose Combat Pursuer 150 | . 30 . 120 . Influence Decreases 700 | 10 274 50 290 76 Time Decay 680 | 10 274 50 270 76 Lost Part 20 | . . . 20 . Squads Dispatched . | . . . . . Investigation . | . . . . . Extermination . | . . . . . Reinforcement . | . . . . . Assault . | . . . . . Garrison . | . . . . . Intercept . | . . . . . Searches Triggered . | . . . . . Construction Impeded . | . . . . . Haulers Reinforced . | . . . . . Active Scanning Responses . | . . . . . Cargo Convoy Interrupts . | . . . . . Stealth | -11 -10 -10 -10 -9 --------- Run | Yrd Mat Min Sub Rec Distress Signals 1 | . 1 . . . Communications Jammed . | . . . . . Distress Signals . | . . . . . Times Spotted 40 | . 14 2 22 2 Peak Tracking Total 5 | . 4 2 5 1 Tactical Retreats 7 | . 2 . 5 . Traps | -11 -10 -10 -10 -9 ------- Run | Yrd Mat Min Sub Rec Traps Triggered 1 | . . . 1 . Indirectly . | . . . . . Trap Hack Attempts . | . . . . . Triggered . | . . . . . Disarmed . | . . . . . Reprogrammed . | . . . . . Reused . | . . . . . Traps Extracted . | . . . . . Installed . | . . . . . Triggered . | . . . . . Machines | -11 -10 -10 -10 -9 ---------- Run | Yrd Mat Min Sub Rec Machines Disabled 2 | . . . 2 . Max in Single Turn 1 | . . . 1 . Machines Repaired . | . . . . . Machines Dismantled . | . . . . . Machines Sabotaged . | . . . . . Overloaded Fab Kills . | . . . . . Hacking | -11 -10 -10 -10 -9 --------- Run | Yrd Mat Min Sub Rec Machines Accessed 9 | . 6 . 2 1 Terminals 6 | . 6 . . . Fabricators . | . . . . . Repair Stations . | . . . . . Recycling Units 1 | . . . . 1 Scanalyzers . | . . . . . Garrison Access . | . . . . . Total Hacks 20 | . 15 . 4 1 Successful 13 | . 8 . 4 1 Failed 7 | . 7 . . . Catastrophic 1 | . 1 . . . Database Lockouts . | . . . . . Manual 15 | . 14 . . 1 Terminals 15 | . 15 . . . Fabricators . | . . . . . Repair Stations . | . . . . . Recycling Units 1 | . . . . 1 Scanalyzers . | . . . . . Garrison Access . | . . . . . Terminal Hacks 5 | . 1 . 4 . Record 3 | . . . 3 . Emergency Access Points 1 | . 1 . . . Proto ID Catalog 1 | . . . 1 . Fabricator Hacks . | . . . . . Repair Station Hacks . | . . . . . Recycling Unit Hacks . | . . . . . Scanalyzer . | . . . . . Garrison Access Hacks . | . . . . . Unauthorized Hacks 8 | . 7 . . 1 Terminals 7 | . 7 . . . Botnet 2 | . 2 . . . Skim 5 | . 5 . . . Fabricators . | . . . . . Repair Stations . | . . . . . Recycling Units 1 | . . . . 1 Tunnel 1 | . . . . 1 Scanalyzers . | . . . . . Garrison Access . | . . . . . Data Cores Recovered . | . . . . . Used . | . . . . . Hacking Detections 5 | . 5 . . . Full Trace Events . | . . . . . Feedback Events . | . . . . . Feedback Blocked . | . . . . . Robot Schematics Acquired . | . . . . . Robots Built . | . . . . . Authchips . | . . . . . Time . | . . . . . Total Robot Build Rating . | . . . . . Part Schematics Acquired . | . . . . . Parts Built . | . . . . . Authchips . | . . . . . Time . | . . . . . Total Part Build Rating . | . . . . . Part Studies Acquired . | . . . . . Parts Repaired . | . . . . . Time . | . . . . . Parts Recycled . | . . . . . Recycled Matter . | . . . . . Retrieved Matter . | . . . . . Retrieved Components . | . . . . . Parts Scanalyzed . | . . . . . Part Schematics Acquired . | . . . . . Parts Damaged . | . . . . . Bothacking | -11 -10 -10 -10 -9 ------------ Run | Yrd Mat Min Sub Rec Used RIF Installer . | . . . . . Robots Hacked . | . . . . . Non-combat . | . . . . . Combat . | . . . . . Robot Hacks Applied . | . . . . . Relay Couplers Released . | . . . . . Fabnet Peak Effective % . | . . . . . Robots Rewired . | . . . . . Allies Hacked . | . . . . . Hacks Repelled . | . . . . . Allies | -11 -10 -10 -10 -9 -------- Run | Yrd Mat Min Sub Rec Total Allies . | . . . . . Largest Group . | . . . . . Highest-Rated Group . | . . . . . Highest-Rated Ally . | . . . . . Total Orders . | . . . . . Ally Attacks . | . . . . . Total Damage . | . . . . . Kills . | . . . . . Allies Corrupted . | . . . . . Allies Melted . | . . . . . Intel | -11 -10 -10 -10 -9 ------- Run | Yrd Mat Min Sub Rec Active Infowar (turns) 3195 | 50 1413 721 1011 . Seismic 3195 | 50 1413 721 1011 . Robot Analysis Total . | . . . . . Derelict Logs Recovered 4 | . . 1 3 . Drone Launches . | . . . . . Drone Recoveries . | . . . . . Exploration | -11 -10 -10 -10 -9 ------------- Run | Yrd Mat Min Sub Rec Turns Passed 6166 | 133 1413 721 3689 210 Spaces Moved 3312 | 67 744 417 1978 106 Core 10 | 10 . . . . Treads 3302 | 57 744 417 1978 106 Legs . | . . . . . Wheels . | . . . . . Hover . | . . . . . Flight . | . . . . . Fastest Speed 50 | 50 160 160 160 160 Average Speed 159 | 143 160 160 160 160 Slowest Speed 160 | 160 160 160 160 160 Overloaded Moves . | . . . . . Propulsion Burnouts . | . . . . . Robots Hopped . | . . . . . Potential Cave-ins . | . . . . . Cave-ins Triggered . | . . . . . Exploration Rate (%) 57 | 6 96 78 96 13 Regions Visited 4 Branch Regions 3 Pre-discovered Areas 3 | . 1 1 . 1 Known Exits Taken 1 | . . 1 . . Unknown Exits Taken 3 | 1 1 . 1 . Scrap Searched 4 | . . 1 3 . Spaces Dug 5 | . . . 5 . Terrain Destroyed 7 | . . . 6 1 Melee . | . . . . . Projectile 6 | . . . 5 1 AOE 1 | . . . 1 . Terrain Rammed . | . . . . . Walls Destroyed . | . . . . . Machines Disabled . | . . . . . Actions | -11 -10 -10 -10 -9 --------- Run | Yrd Mat Min Sub Rec Total 3914 | 91 917 442 2338 126 Wait 303 | . 112 8 176 7 Move 3308 | 66 743 416 1977 106 Hop . | . . . . . Pick Up 51 | 12 17 1 20 1 Fast Attach 5 | 1 . . 4 . Attach 12 | 6 . . 6 . Detach . | . . . . . Swap 24 | . 6 1 16 1 Drop 44 | . 11 1 32 . Fire 165 | 6 27 14 107 11 Melee . | . . . . . Ram . | . . . . . Kick . | . . . . . Crush 2 | . 1 1 . . Escape Stasis . | . . . . . Rewire . | . . . . . Trap . | . . . . . Miscellaneous . | . . . . . Route ------- -11/Scrapyard -10/Materials (discovered 5 exits: *Mat x3 / [*Min] / Sub) -10/Mines (discovered 4 exits: *Mat x2 / *Exi / *Sub) -10/Subcaves (discovered 3 exits: [*Mat x2] / *Rec) -9/Recycling History --------- Turn | Location | Event 51 | -11/Scrapyard | Discovered new exit (range 15) 134 | -11/Scrapyard | Entered Materials 316 | -10/Materials | Build established: Mutant 385 | -10/Materials | Discovered new exit (range 15) 633 | -10/Materials | Discovered new exit (range 4) 799 | -10/Materials | Discovered new exit (range 16) 1070 | -10/Materials | Discovered new exit (range 8) 1107 | -10/Materials | Learned location of 2 exits from Mines 1182 | -10/Materials | Learned location of 2 exits from Mines 1245 | -10/Materials | Identified exit to Subcaves 1245 | -10/Materials | Learned location of 1 exit from Materials 1297 | -10/Materials | Loaded intel: 1 repair station location 1374 | -10/Materials | Learned location of Subcaves (-10) 1547 | -10/Materials | Entered Mines 1548 | -10/Mines | Identified exit to Materials 1548 | -10/Mines | Identified exit to Exiles 1619 | -10/Mines | Learned location of 1 exit from Materials 1676 | -10/Mines | Learned location of Storage (-9) 2220 | -10/Mines | Found a damaged Exp. Sensor Array with a note attached 2228 | -10/Mines | Found Prototype Device 2236 | -10/Mines | Deemed a non-threat by the Exiles lab entrance 2268 | -10/Mines | Entered Subcaves 2651 | -10/Subcaves | Learned 2 Materials zone layouts 2730 | -10/Subcaves | Build established: Scavenger-Mutant 2826 | -10/Subcaves | A swath of the cavern ceiling suddenly collapsed 2862 | -10/Subcaves | A swath of the cavern ceiling suddenly collapsed 3326 | -10/Subcaves | Discovered new exit (range 5) 3338 | -10/Subcaves | Shifting Twisted Machinery released Sub. Monowheel 3517 | -10/Subcaves | Shifting Twisted Machinery released Mak. Light Armor Plating 3597 | -10/Subcaves | Shifting Twisted Machinery released Battle Cannon 3616 | -10/Subcaves | Shifting Twisted Machinery released Sub. Machine Gun 3638 | -10/Subcaves | Shifting Twisted Machinery released Sub. Power Source 3775 | -10/Subcaves | Shifting Twisted Machinery released Sub. Machine Gun 3919 | -10/Subcaves | Discovered new exit (range 15) 3929 | -10/Subcaves | Build established: Mutant 4061 | -10/Subcaves | Core integrity fell below 50% 4428 | -10/Subcaves | Learned Materials emergency access door positions 4561 | -10/Subcaves | Discovered new exit (range 13) 4998 | -10/Subcaves | Visited Clippyterm 5068 | -10/Subcaves | Learned Materials terminal intel 5102 | -10/Subcaves | Visited 4L-MR0's lab 5125 | -10/Subcaves | Found Flightbrick 5682 | -10/Subcaves | Core integrity fell below 20% 5957 | -10/Subcaves | Entered Recycling 6167 | -9/Recycling | Destroyed by Y-45 Defender with Beam Rifle Last Messages --------------- 05701_ Acquired 10 matter. 05703_ Subatomizers dissect the Battle Cannon. 05709_ Dropped Lgt. Treads. 05711_ Acquired Sub. Monowheel. 05712_ Acquired 10 matter. LOCATION=UNKNOWN GOAL=ESCAPE 05965_ Y-45 Defender destroyed. 05974_ Y-45 Defender springs to life. 05981_ Critical hit (Burn: +37). 05982_ Y-45 Defender destroyed. 05985_ R-06 Scavenger destroyed. 05986_ R-06 Scavenger collects Com. Wheel. 06005_ Acquired Lgt. Treads. 06006_ Acquired 38 matter. 06075_ Connecting with Recycling Unit... 06075_ Current location identified: Recycling >>Force(Tunnel) DISCOVERED[-3/Research] 06150_ Y-45 Defender springs to life. Map ----- +----------------------------------------------------+ | ?# [=*#?????????????????????? | | ?# %##?????????????????????? | | ?# #??????????????????????? | | ?# #??????????????????????? | | ?# #??????????????????????? | | ?# ############???????????? | | ?# #???????????? | | ?# #???????????? | | ?# #???????????? | | ?# """ """ #???????????? | | ?# """ """ #???????????? | | ?# """ """ #???????????? | | ?# #???????????? | | ?# #???????????? | | ?# """ """ #???????????? | | ?# """ """ #???????????? | | ?# """ """ #???????????? | | ?# #???????????? | | ?# #???????????? | | ?# """ """ #???????????? | | ?# """ """ #???????????? | | ?# """ """ #???????????? | | ?# #???????????? | | ?# #???????????? | | ?# #???????????? | | ?# @ #???????????? | | ?# Y ##############???????????? | | ?# #????????????????????????? | | ?# #????????????????????????? | | ? #????????????????????????? | | ## ????????????????????????? | | ?# #????????????????????????? | | ?# #????????????????????????? | | ?# #????????????????????????? | | ?# ?????????????????????????? | | ?# ?????????????????????????? | | ?# ?????????????????????????? | | ?# ?????????????????????????? | | ??????????????????????????????? | | ??????????????????????????????? | | ??????????????????????????????? | | ??????????????????????????????? | | ??????????????????????????????? | | ??????????????????????????????? | | ??????????????????????????????? | | ??????????????????????????????? | | ??????????????????????????????? | | ??????????????????????????????? | | ??????????????????????????????? | | ??????????????????????????????? | +----------------------------------------------------+ Best States ------------- Heat Dissipation 25 Energy Generation 15 Energy Capacity 250 Matter Stores 300 Matter Capacity 300 Sight Range 16 Terrain Scan Density 10 Armor Coverage 150 Resistance: KI 10 Evasion (%) 50 Recoil Reduction 2 Item Schematics ----------------- None Robot Schematics ------------------ None Fabricated ------------ Nothing Repaired ---------- Nothing Studied --------- None Alien Tech Used ----------------- None Achievements -------------- None Challenges ------------ None Game ------ Seed ComponentHardcellChainsword Manual? 0 Play Time 00:35:13 Cumulative 204.9 hours Start 2025.12.15 @ 14:43:42 End 2025.12.15 @ 18:12:06 Sessions 1 Manual Loads 0 Difficulty Rogue Special Mode None Game No. 289 Rogue 289 Adventurer 0 Explorer 0 Win Type - Total 3 Types 2/0/0/1/0/0/0/0/0/0 Lore% 73 Gallery% 73 Achievement% 45 Wizard Run 0 Options --------- Layout 0 ASCII 0 Keyboard 0 Movement Mouse Keybinds 0 Fullscreen 1 Font 16/SmallcapsGlow Map View 75x55 Zoom Use 0% Tactical HUD 1 Map Filters NONE Filters NONE Steam 1 RUN: 9d9c28dd-c0dd-4cdb-87db-0df86bdb393d